fUSD/lending_fUSD_20260524
["ID","MTS","AMOUNT","RATE_DAILY","PERIOD"]
[422919829,1779627043000,-101.92,0.00029,2]
[422919826,1779627043000,-296.78,0.00028516,30]
[422919801,1779627043000,-183.60420459,0.00028746,7]
[422919831,1779627043000,-3304.19561816,0.00029,2]
[422919828,1779627043000,-296.78,0.00028677,7]
[422919822,1779627043000,-296.78,0.00028355,2]
[422919820,1779627043000,-108813.20132368,0.00029,2]
[422919821,1779627043000,-167774.7254728,0.00029,2]
[422919816,1779627043000,-439.58179,0.0002892,2]
[422919817,1779627043000,-439.58178,0.0002892,2]
[422919815,1779627043000,-439.58178,0.0002892,2]
[422919827,1779627043000,-603.27641542,0.00029,2]
[422919818,1779627043000,-151.0,0.00028997,7]
[422919814,1779627043000,-439.58178,0.0002892,2]
[422919812,1779627043000,-439.58178,0.000289,2]
[422919813,1779627043000,-439.58179,0.000289,2]
[422919811,1779627043000,-150.0,0.00028897,2]
[422919803,1779627043000,-158.84148023,0.00028746,7]
[422919810,1779627043000,-154.72225373,0.00028752,7]
[422919808,1779627043000,-152.42014882,0.00028751,7]
[422919807,1779627043000,-196.18097014,0.00028751,7]
[422919802,1779627043000,-160.05112355,0.00028746,2]
[422919809,1779627043000,-172.77747418,0.00028752,7]
[422919819,1779627043000,-206.9567288,0.00029,2]
[422919838,1779627045000,-350.3293458,0.00023765,2]
[422919840,1779627045000,-501.0,0.00025082,2]
[422919839,1779627045000,-173.15,0.00024658,2]
[422919843,1779627045000,-115.57331106,0.00026829,7]
[422919842,1779627045000,-501.0,0.00026263,3]
[422919841,1779627045000,-501.0,0.00025673,2]
[422919853,1779627046000,-376.59,0.00027872,2]
[422919850,1779627046000,-1207.7,0.0002755,30]
[422919848,1779627046000,-173.15,0.0002755,2]
[422919852,1779627046000,-1207.7,0.00027711,7]
[422919851,1779627046000,-376.59,0.00027711,7]
[422919847,1779627046000,-501.0,0.00027444,4]
[422919846,1779627046000,-3594.18,0.00027397,10]
[422919856,1779627046000,-376.59,0.00028033,30]
[422919858,1779627046000,-501.0,0.00028035,5]
[422919844,1779627046000,-57.57668894,0.00026829,7]
[422919845,1779627046000,-501.0,0.00026854,3]
[422919855,1779627046000,-811.63137062,0.00027872,2]
[422919857,1779627046000,-1207.7,0.00028033,30]
[422919854,1779627046000,-396.06862938,0.00027872,2]
[422919849,1779627046000,-376.59,0.0002755,30]
[422919862,1779627046000,-376.59,0.00028355,2]
[422919874,1779627046000,-3748.33223496,0.00029,2]
[422919872,1779627046000,-1207.7,0.00028838,2]
[422919869,1779627046000,-1207.7,0.00028677,7]
[422919865,1779627046000,-1207.7,0.00028516,30]
[422919866,1779627046000,-501.0,0.00028625,5]
[422919868,1779627046000,-67.23353946,0.00028677,7]
[422919867,1779627046000,-309.35646054,0.00028677,7]
[422919861,1779627046000,-1207.7,0.00028194,7]
[422919870,1779627046000,-296.78,0.00028838,2]
[422919860,1779627046000,-376.59,0.00028194,7]
[422919864,1779627046000,-376.59,0.00028516,30]
[422919871,1779627046000,-376.59,0.00028838,2]
[422919863,1779627046000,-1207.7,0.00028355,2]
[422919873,1779627046000,-12023.51832504,0.00029,2]
[422919859,1779627046000,-173.15,0.0002813,7]
[422919879,1779627077000,500.0,0.00014725,2]
[422919878,1779627077000,500.0,0.00014725,2]
[422919882,1779627078000,619.36058321,0.00014725,2]
[422919881,1779627078000,500.0,0.00014725,2]
[422919880,1779627078000,500.0,0.00014725,2]
[422919883,1779627099000,150.18093247,0.0002,20]
[422919885,1779627131000,154.6,0.00016438,2]
[422919884,1779627131000,154.6,0.0001841,2]
[422919886,1779627150000,500.0,0.00014999,2]
[422919887,1779627163000,397.88,0.00027744,120]
[422919888,1779627240000,185.0,0.0002,2]
[422919889,1779627245000,250.0,0.00014,2]
[422919890,1779627269000,2076.0,0.0002,2]
[422919891,1779627432000,151.0,0.0001841,2]
[422919892,1779627507000,160.0,0.0002,2]
[422919896,1779627676000,154.52,0.00025554,120]
[422919900,1779627763000,165.91,0.0001279,2]
[422919901,1779627763000,165.91,0.00014388,2]
[422919904,1779627764000,165.91,0.00019184,2]
[422919903,1779627764000,165.91,0.00017586,2]
[422919902,1779627764000,165.91,0.00015987,2]
[422919907,1779627888000,174.85,0.00020263,2]
[422919909,1779628142000,1000.0,0.00027998,120]
[422919917,1779628233000,-347.44814595,0.00020489,2]
[422919916,1779628233000,-261.55185405,0.00020389,2]
[422919915,1779628233000,-151.0,0.00020381,2]
[422919920,1779628233000,-185.0,0.00021,2]
[422919918,1779628233000,-152.55185405,0.00020489,2]
[422919919,1779628233000,-165.91,0.00020783,2]
[422919923,1779628233000,-500.0,0.000219,2]
[422919924,1779628233000,-185.0,0.00022,2]
[422919922,1779628233000,-215.34753388,0.00021,2]
[422919925,1779628233000,-150.00500469,0.00022353,2]
[422919921,1779628233000,-162.0,0.00021,2]
[422919995,1779628238000,-501.0,0.00025721,2]
[422919990,1779628238000,-500.0,0.00025365,2]
[422919992,1779628238000,-158.28,0.00025576,2]
[422919994,1779628238000,-1000.0,0.000256,2]
[422919993,1779628238000,-165.91,0.00025579,2]
[422919996,1779628238000,-150.0,0.00025742,4]
[422919997,1779628238000,-150.0,0.00025742,4]
[422919999,1779628238000,-150.0,0.00025742,4]
[422920000,1779628238000,-150.0,0.00025742,4]
[422920001,1779628238000,-199.76,0.00025959,2]
[422920002,1779628238000,-1000.0,0.00026207,2]
[422920003,1779628238000,-151.0,0.00026296,2]
[422920004,1779628238000,-162.4,0.00026359,2]
[422920005,1779628238000,-501.0,0.00026359,3]
[422920006,1779628238000,-4900.1,0.000264,2]
[422920008,1779628238000,-199.76,0.00026592,2]
[422920010,1779628238000,-150.0,0.00026696,4]
[422919998,1779628238000,-150.0,0.00025742,4]
[422919991,1779628238000,-200.0,0.00025567,2]
[422919989,1779628238000,-318.3,0.00025346,2]
[422919987,1779628238000,-7981.96,0.00025317,2]
[422920023,1779628238000,-500.0,0.00027247,2]
[422919971,1779628238000,-165.91,0.00022382,2]
[422919970,1779628238000,-0.99499531,0.00022353,2]
[422919972,1779628238000,-185.0,0.00023,2]
[422919974,1779628238000,-771.0,0.00023551,2]
[422919973,1779628238000,-162.32276931,0.00023551,2]
[422919975,1779628238000,-2674.32355054,0.00023552,2]
[422919977,1779628238000,-160.0,0.00023978,2]
[422919988,1779628238000,-199.76,0.00025326,2]
[422919978,1779628238000,-165.91,0.00023981,2]
[422919980,1779628238000,-151.0,0.00024324,2]
[422919983,1779628238000,-501.0,0.00025082,2]
[422919976,1779628238000,-302.0,0.00023575,2]
[422919981,1779628238000,-167.4,0.00024603,30]
[422919982,1779628238000,-195.0,0.00025,2]
[422919984,1779628238000,-823.0,0.00025093,10]
[422919985,1779628238000,-2185.0,0.000251,2]
[422919986,1779628238000,-1000.0,0.00025302,2]
[422919979,1779628238000,-185.0,0.00024,2]
[422920014,1779628238000,-501.0,0.00026998,4]
[422920035,1779628238000,-150.0,0.00027521,2]
[422920018,1779628238000,-500.0,0.00027247,2]
[422920042,1779628238000,-199.76,0.00027859,2]
[422920044,1779628238000,-300.12212029,0.00028,5]
[422920043,1779628238000,-151.0,0.00027872,2]
[422920047,1779628238000,-1356.627,0.00028081,18]
[422920012,1779628238000,-5999.000001,0.000269,3]
[422920045,1779628238000,-161.88,0.00028033,7]
[422920050,1779628238000,-379.3946747,0.00028167,2]
[422920048,1779628238000,-154.18225472,0.00028166,9]
[422920049,1779628238000,-6806.8786,0.00028166,2]
[422920051,1779628238000,-2278.17068097,0.00028167,2]
[422920053,1779628238000,-746.17,0.00028219,2]
[422920054,1779628238000,-205.26926948,0.00028247,10]
[422920056,1779628238000,-930.07608176,0.00028257,10]
[422920057,1779628238000,-579.25293646,0.00028257,10]
[422920052,1779628238000,-2500.0,0.00028167,2]
[422920055,1779628238000,-2809.11073052,0.00028247,10]
[422920058,1779628238000,-507.71285999,0.00028257,10]
[422920041,1779628238000,-4900.1,0.000277,2]
[422920040,1779628238000,-150.0,0.00027649,7]
[422920046,1779628238000,-161.81,0.00028033,7]
[422920033,1779628238000,-1000.0,0.00027443,4]
[422920024,1779628238000,-500.0,0.00027247,2]
[422920039,1779628238000,-501.0,0.00027637,4]
[422920022,1779628238000,-500.0,0.00027247,2]
[422920021,1779628238000,-500.0,0.00027247,2]
[422920016,1779628238000,-167.4,0.00027193,30]
[422920017,1779628238000,-199.76,0.00027226,2]
[422920025,1779628238000,-500.0,0.00027247,2]
[422920026,1779628238000,-500.0,0.00027247,2]
[422920028,1779628238000,-500.0,0.00027247,2]
[422920019,1779628238000,-500.0,0.00027247,2]
[422920029,1779628238000,-172.12358848,0.00027247,2]
[422920031,1779628238000,-150.0,0.00027247,2]
[422920030,1779628238000,-560.54667082,0.00027247,2]
[422920038,1779628238000,-1000.0,0.00027603,2]
[422920034,1779628238000,-5000.0,0.00027477,2]
[422920032,1779628238000,-1500.0,0.00027397,2]
[422920036,1779628238000,-161.88,0.0002755,30]
[422920037,1779628238000,-161.81,0.0002755,30]
[422920027,1779628238000,-500.0,0.00027247,2]
[422920059,1779628239000,-494.93812179,0.00028257,10]
[422920061,1779628239000,-136273.1458533,0.00028267,2]
[422920062,1779628239000,-6996.60416418,0.00028267,2]
[422920060,1779628239000,-2093.32,0.00028257,10]
[422920072,1779628240000,-1929.875,0.00028267,2]
[422920073,1779628240000,-161.91,0.0002755,30]
[422920074,1779628240000,-68429.77717922,0.00028267,2]
[422920078,1779628240000,-4913.6203014,0.00028267,2]
[422920075,1779628240000,-151.0,0.00028267,2]
[422920076,1779628240000,-3141.0505602,0.00028267,2]
[422920077,1779628240000,-3092.7132345,0.00028267,2]
[422920081,1779628240000,-501.0,0.00028275,5]
[422920083,1779628240000,-5000.0,0.00028327,2]
[422920079,1779628240000,-176.0,0.00028267,3]
[422920082,1779628240000,-5326.10386394,0.00028327,2]
[422920092,1779628240000,-350.88910153,0.00028426,2]
[422920088,1779628240000,-151.0,0.00028424,7]
[422920096,1779628240000,-220893.92285014,0.00028427,2]
[422920095,1779628240000,-150.0,0.00028427,2]
[422920093,1779628240000,-621.0,0.00028427,5]
[422920094,1779628240000,-200.0,0.00028427,2]
[422920085,1779628240000,-491.77262355,0.000284,2]
[422920080,1779628240000,-545.0,0.00028267,10]
[422920086,1779628240000,-1598.79699543,0.00028423,5]
[422920084,1779628240000,-2278.17068096,0.00028374,2]
[422920089,1779628240000,-500.0,0.00028426,2]
[422920091,1779628240000,-318.48208699,0.00028426,2]
[422920090,1779628240000,-500.0,0.00028426,2]
[422920126,1779628243000,-345.0,0.00028427,2]
[422920125,1779628243000,-419.787239,0.00028427,2]
[422920123,1779628243000,-755.0,0.00028427,10]
[422920122,1779628243000,-161.91,0.00028033,7]
[422920124,1779628243000,-356.30436732,0.00028427,2]
[422920132,1779628277000,1384.0,0.0002,2]
[422920133,1779628325000,500.0,0.00020281,2]
[422920134,1779628386000,500.0,0.00019332,2]
[422920135,1779628431000,152.0,0.0002,2]
[422920137,1779628575000,159.75,0.00013175,2]
[422920138,1779628584000,3519.42197812,0.00015,2]
[422920139,1779628705000,152.0,0.0002,2]
[422920145,1779628821000,1808.80400951,0.00015,14]
[422920152,1779628890000,10000.01,0.00015,2]
[422920147,1779628890000,10000.01,0.00015,2]
[422920148,1779628890000,10000.01,0.00015,2]
[422920149,1779628890000,10000.01,0.00015,2]
[422920151,1779628890000,10000.01,0.00015,2]
[422920150,1779628890000,10000.01,0.00015,2]
[422920153,1779628890000,10000.01,0.00015,2]
[422920157,1779628890000,10000.01,0.00015,2]
[422920156,1779628890000,10000.01,0.00015,2]
[422920158,1779628890000,10000.01,0.00015,2]
[422920155,1779628890000,10000.01,0.00015,2]
[422920161,1779628890000,10000.01,0.00015,2]
[422920159,1779628890000,10000.01,0.00015,2]
[422920154,1779628890000,10000.01,0.00015,2]
[422920160,1779628890000,10000.01,0.00015,2]
[422920179,1779629343000,1000.0,0.00027997,120]
[422920298,1779629432000,-500.0,0.00014999,2]
[422920294,1779629432000,-500.0,0.00014999,2]
[422920288,1779629432000,-491.77262355,0.00014904,2]
[422920291,1779629432000,-500.0,0.00014999,2]
[422920297,1779629432000,-500.0,0.00014999,2]
[422920295,1779629432000,-500.0,0.00014999,2]
[422920296,1779629432000,-500.0,0.00014999,2]
[422920302,1779629432000,-539.31869079,0.00014999,2]
[422920306,1779629432000,-500.0,0.00014999,2]
[422920299,1779629432000,-500.0,0.00014999,2]
[422920300,1779629432000,-500.0,0.00014999,2]
[422920301,1779629432000,-500.0,0.00014999,2]
[422920305,1779629432000,-500.0,0.00014999,2]
[422920307,1779629432000,-500.0,0.00014999,2]
[422920304,1779629432000,-500.0,0.00014999,2]
[422920319,1779629432000,-500.0,0.00014999,2]
[422920292,1779629432000,-500.0,0.00014999,2]
[422920303,1779629432000,-500.0,0.00014999,2]
[422920293,1779629432000,-500.0,0.00014999,2]
[422920272,1779629432000,-215.34753388,7.972e-05,2]
[422920289,1779629432000,-150.0,0.00014986,2]
[422920310,1779629432000,-500.0,0.00014999,2]
[422920270,1779629432000,-353.138314,7.945e-05,2]
[422920273,1779629432000,-150.0,0.00013488,2]
[422920271,1779629432000,-918.462945,7.945e-05,2]
[422920274,1779629432000,-150.0,0.00013488,2]
[422920279,1779629432000,-1200.0,0.00014899,2]
[422920275,1779629432000,-150.0,0.00013488,2]
[422920276,1779629432000,-150.0,0.00013488,2]
[422920290,1779629432000,-150.0,0.00014998,2]
[422920284,1779629432000,-603.96447396,0.000149,2]
[422920277,1779629432000,-250.0,0.00014,2]
[422920278,1779629432000,-150.0,0.00014237,2]
[422920282,1779629432000,-501.59534038,0.000149,2]
[422920281,1779629432000,-1857.90724998,0.000149,2]
[422920283,1779629432000,-178.96683288,0.000149,2]
[422920285,1779629432000,-5326.10386394,0.000149,2]
[422920287,1779629432000,-674.66111086,0.000149,2]
[422920286,1779629432000,-159.06154663,0.000149,2]
[422920280,1779629432000,-192.44636292,0.000149,2]
[422920312,1779629432000,-500.0,0.00014999,2]
[422920340,1779629432000,-500.0,0.00014999,2]
[422920325,1779629432000,-500.0,0.00014999,2]
[422920367,1779629432000,-350.12621728,0.00014999,2]
[422920366,1779629432000,-500.0,0.00014999,2]
[422920365,1779629432000,-500.0,0.00014999,2]
[422920308,1779629432000,-500.0,0.00014999,2]
[422920360,1779629432000,-500.0,0.00014999,2]
[422920368,1779629432000,-500.0,0.00014999,2]
[422920370,1779629432000,-500.0,0.00014999,2]
[422920369,1779629432000,-500.0,0.00014999,2]
[422920356,1779629432000,-500.0,0.00014999,2]
[422920363,1779629432000,-500.0,0.00014999,2]
[422920372,1779629432000,-500.0,0.00014999,2]
[422920373,1779629432000,-500.0,0.00014999,2]
[422920376,1779629432000,-500.0,0.00014999,2]
[422920371,1779629432000,-500.0,0.00014999,2]
[422920374,1779629432000,-500.0,0.00014999,2]
[422920375,1779629432000,-500.0,0.00014999,2]
[422920378,1779629432000,-161.46304565,0.00014999,2]
[422920377,1779629432000,-318.48208699,0.00014999,2]
[422920361,1779629432000,-500.0,0.00014999,2]
[422920364,1779629432000,-500.0,0.00014999,2]
[422920358,1779629432000,-500.0,0.00014999,2]
[422920346,1779629432000,-500.0,0.00014999,2]
[422920321,1779629432000,-500.0,0.00014999,2]
[422920316,1779629432000,-500.0,0.00014999,2]
[422920314,1779629432000,-500.0,0.00014999,2]
[422920354,1779629432000,-500.0,0.00014999,2]
[422920329,1779629432000,-150.90844108,0.00014999,2]
[422920323,1779629432000,-278.59940178,0.00014999,2]
[422920331,1779629432000,-500.0,0.00014999,2]
[422920333,1779629432000,-500.0,0.00014999,2]
[422920334,1779629432000,-500.0,0.00014999,2]
[422920327,1779629432000,-500.0,0.00014999,2]
[422920335,1779629432000,-500.0,0.00014999,2]
[422920336,1779629432000,-500.0,0.00014999,2]
[422920352,1779629432000,-500.0,0.00014999,2]
[422920338,1779629432000,-500.0,0.00014999,2]
[422920337,1779629432000,-500.0,0.00014999,2]
[422920344,1779629432000,-500.0,0.00014999,2]
[422920348,1779629432000,-500.0,0.00014999,2]
[422920350,1779629432000,-500.0,0.00014999,2]
[422920342,1779629432000,-500.0,0.00014999,2]
[422920379,1779629433000,-338.53695435,0.00014999,2]
[422920380,1779629433000,-500.0,0.00014999,2]
[422920384,1779629433000,-318.2613099,0.00014999,2]
[422920382,1779629433000,-84.11886758,0.00014999,2]
[422920385,1779629433000,-550.0,0.00014999,2]
[422920383,1779629433000,-181.7386901,0.00014999,2]
[422920386,1779629433000,-343.1347949,0.00014999,2]
[422920387,1779629433000,-156.8652051,0.00014999,2]
[422920388,1779629433000,-317.3377299,0.00014999,2]
[422920381,1779629433000,-415.88113242,0.00014999,2]
[422920389,1779629440000,-182.6622701,0.00014999,2]
[422920390,1779629440000,-500.0,0.00014999,2]
[422920392,1779629440000,-232.97007265,0.00014999,2]
[422920394,1779629440000,-3832.82425969,0.00015,2]
[422920393,1779629440000,-176.0,0.00014999,2]
[422920391,1779629440000,-117.91902888,0.00014999,2]
[422920395,1779629440000,-319492.20947786,0.00015,2]
[422920450,1779629441000,-247927.85748995,0.00023904,2]
[422920410,1779629441000,-2050.35361286,0.00018857,2]
[422920411,1779629441000,-2050.35361286,0.00019847,2]
[422920409,1779629441000,-491.77262355,0.00018799,2]
[422920412,1779629441000,-497.45169574,0.0002,2]
[422920413,1779629441000,-501.59534032,0.00020789,2]
[422920407,1779629441000,-666.0,0.00018028,2]
[422920405,1779629441000,-501.59534032,0.00017844,2]
[422920408,1779629441000,-578.0,0.00018628,2]
[422920414,1779629441000,-2050.35361286,0.00020836,2]
[422920404,1779629441000,-433.0,0.00017338,2]
[422920402,1779629441000,-1680.0,0.00016389,2]
[422920401,1779629441000,-215.09191755,0.00016241,2]
[422920400,1779629441000,-255.0,0.00016123,2]
[422920398,1779629441000,-208.8304494,0.00015026,2]
[422920399,1779629441000,-2050.35361286,0.00015889,2]
[422920396,1779629441000,-3504469.26328949,0.00015,2]
[422920397,1779629441000,-399.92,0.00015,2]
[422920415,1779629441000,-150.99,0.00020951,2]
[422920417,1779629441000,-152.0,0.00021,2]
[422920406,1779629441000,-2050.35361286,0.00017868,2]
[422920427,1779629441000,-10000.0,0.00022672,2]
[422920416,1779629441000,-706.04,0.00020951,2]
[422920437,1779629441000,-501.59534032,0.00023733,2]
[422920440,1779629441000,-2050.35361286,0.00023804,2]
[422920448,1779629441000,-1612.69,0.00023903,2]
[422920442,1779629441000,-160.0,0.00023879,2]
[422920446,1779629441000,-1003.1640441,0.00023902,2]
[422920435,1779629441000,-158.28,0.00023418,2]
[422920444,1779629441000,-8000.0,0.000239,2]
[422920434,1779629441000,-399.92,0.000233,7]
[422920433,1779629441000,-2050.35361286,0.00022815,2]
[422920403,1779629441000,-2050.35361286,0.00016879,2]
[422920420,1779629441000,-500.0,0.000219,2]
[422920425,1779629441000,-10000.0,0.00022672,2]
[422920423,1779629441000,-158.0,0.00022,2]
[422920422,1779629441000,-151.0,0.00022,2]
[422920419,1779629441000,-2050.35361286,0.00021825,2]
[422920421,1779629441000,-5000.0,0.00021918,2]
[422920430,1779629441000,-747.08112725,0.00022672,2]
[422920431,1779629441000,-491.77262355,0.00022694,2]
[422920429,1779629441000,-10000.0,0.00022672,2]
[422920418,1779629441000,-154.0,0.00021,2]
[422920487,1779629443000,-38549.99999999,0.00023904,2]
[422920490,1779629443000,-356301.0162115,0.00023904,2]
[422920489,1779629443000,-764.4164395,0.00023904,2]
[422920488,1779629443000,-1601.3,0.00023904,2]
[422920516,1779629446000,-1748.687099,0.00023904,2]
[422920519,1779629571000,164.41,0.00025463,120]
[422920520,1779629731000,10000.0,0.00028082,120]
[422920523,1779629752000,10000.0,0.00028082,120]
[422920524,1779629760000,10000.0,0.00028082,120]
[422920525,1779629768000,10000.0,0.00028082,120]
[422920526,1779629775000,10000.0,0.00028082,120]
[422920527,1779629783000,10000.0,0.00028082,120]
[422920528,1779629791000,10000.0,0.00028082,120]
[422920529,1779629800000,10000.0,0.00028082,120]
[422920530,1779629809000,10000.0,0.00028082,120]
[422920531,1779629815000,10000.0,0.00028082,120]
[422920532,1779629824000,10000.0,0.00028082,120]
[422920533,1779629831000,10000.0,0.00028082,120]
[422920534,1779629838000,10000.0,0.00028082,120]
[422920535,1779629847000,10000.0,0.00028082,120]
[422920640,1779629854000,10000.0,0.00028082,120]
[422920641,1779629861000,10000.0,0.00028082,120]
[422920642,1779629868000,10000.0,0.00028082,120]
[422920643,1779629875000,10000.0,0.00028082,120]
[422920644,1779629881000,10000.0,0.00028082,120]
[422920645,1779629888000,10000.0,0.00028082,120]
[422920646,1779629895000,10000.0,0.00028082,120]
[422920647,1779629902000,10000.0,0.00028082,120]
[422920648,1779629909000,10000.0,0.00028082,120]
[422920649,1779629915000,10000.0,0.00028082,120]
[422920650,1779629926000,10000.0,0.00028082,120]
[422920651,1779629935000,10000.0,0.00028082,120]
[422920652,1779629941000,10000.0,0.00028082,120]
[422920653,1779629948000,10000.0,0.00028082,120]
[422920654,1779629955000,10000.0,0.00028082,120]
[422920655,1779629962000,10000.0,0.00028082,120]
[422920656,1779629970000,10000.0,0.00028082,120]
[422920657,1779629981000,10000.0,0.00028082,120]
[422920658,1779629990000,10000.0,0.00028082,120]
[422920659,1779629994000,1000.0,0.00028,120]
[422920660,1779629998000,10000.0,0.00028082,120]
[422920661,1779630005000,10000.0,0.00028082,120]
[422920662,1779630014000,4267.0,0.00028082,120]
[422920930,1779630515000,-160.27,0.00011313,2]
[422920932,1779630528000,-658.88045739,0.00012344,2]
[422920933,1779630540000,-160.27,0.00012445,2]
[422920934,1779630543000,1000.0,0.00028081,120]
[422920935,1779630555000,-339.37035117,0.00012445,2]
[422920982,1779630632000,-500.0,0.00014999,2]
[422920985,1779630632000,-500.0,0.00014999,2]
[422920987,1779630632000,-500.0,0.00014999,2]
[422920986,1779630632000,-500.0,0.00014999,2]
[422920988,1779630632000,-166.39,0.00015279,2]
[422921000,1779630632000,-2968.10026109,0.0001638,2]
[422920995,1779630632000,-352.24,0.00015868,2]
[422920994,1779630632000,-160.27,0.00015838,2]
[422920993,1779630632000,-200.0,0.00015814,2]
[422920990,1779630632000,-156.33,0.00015433,2]
[422920991,1779630632000,-200.0,0.00015488,2]
[422920992,1779630632000,-300.0,0.00015635,2]
[422920996,1779630632000,-1085.301,0.00016322,2]
[422920999,1779630632000,-166.84,0.00016362,2]
[422920998,1779630632000,-152.45,0.00016324,2]
[422920997,1779630632000,-27226.92,0.00016323,2]
[422920983,1779630632000,-614.41498201,0.00014999,2]
[422920980,1779630632000,-500.0,0.00014999,2]
[422920970,1779630632000,-129.32972,0.00013718,2]
[422920981,1779630632000,-500.0,0.00014999,2]
[422920962,1779630632000,-156.33,7.716e-05,2]
[422920964,1779630632000,-156.33,9.431e-05,2]
[422920963,1779630632000,-156.33,8.574e-05,2]
[422920966,1779630632000,-156.33,0.00011146,2]
[422920967,1779630632000,-156.33,0.00012003,2]
[422920968,1779630632000,-156.33,0.00012861,2]
[422920965,1779630632000,-156.33,0.00010289,2]
[422920969,1779630632000,-160.27,0.00013576,2]
[422920972,1779630632000,-156.33,0.00014576,2]
[422920971,1779630632000,-27.00028,0.00013718,2]
[422920975,1779630632000,-10.10286734,0.00014997,2]
[422920973,1779630632000,-160.27,0.00014707,2]
[422920974,1779630632000,-150.0,0.00014765,2]
[422920976,1779630632000,-1189.89713266,0.00014997,2]
[422920977,1779630632000,-980.0,0.00014998,2]
[422920979,1779630632000,-500.0,0.00014999,2]
[422920978,1779630632000,-300.0,0.00014998,2]
[422920984,1779630632000,-500.0,0.00014999,2]
[422921001,1779630632000,-29155.24046955,0.00016469,2]
[422920989,1779630632000,-297.16,0.00015421,2]
[422921005,1779630632000,-193.94449081,0.00016479,2]
[422921024,1779630632000,-601.20712076,0.00016479,2]
[422921027,1779630632000,-202.41424152,0.00016479,2]
[422921029,1779630632000,-500.0,0.00016479,2]
[422921028,1779630632000,-500.0,0.00016479,2]
[422921031,1779630632000,-500.0,0.00016479,2]
[422921030,1779630632000,-202.41424152,0.00016479,2]
[422921032,1779630632000,-213.94513613,0.00016479,2]
[422921026,1779630632000,-500.0,0.00016479,2]
[422921033,1779630632000,-500.0,0.00016479,2]
[422921035,1779630632000,-500.0,0.00016479,2]
[422921034,1779630632000,-500.0,0.00016479,2]
[422921036,1779630632000,-500.0,0.00016479,2]
[422921039,1779630632000,-500.0,0.00016479,2]
[422921040,1779630632000,-500.0,0.00016479,2]
[422921038,1779630632000,-500.0,0.00016479,2]
[422921037,1779630632000,-500.0,0.00016479,2]
[422921007,1779630632000,-500.0,0.00016479,2]
[422921025,1779630632000,-500.0,0.00016479,2]
[422921022,1779630632000,-601.20712076,0.00016479,2]
[422921041,1779630632000,-500.0,0.00016479,2]
[422921021,1779630632000,-601.20712076,0.00016479,2]
[422921023,1779630632000,-601.20712076,0.00016479,2]
[422921008,1779630632000,-500.0,0.00016479,2]
[422921002,1779630632000,-247.82,0.0001647,3]
[422921004,1779630632000,-500.0,0.00016479,2]
[422921003,1779630632000,-743.48,0.0001647,3]
[422921011,1779630632000,-500.0,0.00016479,2]
[422921012,1779630632000,-333.30438576,0.00016479,2]
[422921009,1779630632000,-500.0,0.00016479,2]
[422921006,1779630632000,-500.0,0.00016479,2]
[422921014,1779630632000,-601.20712076,0.00016479,2]
[422921013,1779630632000,-500.0,0.00016479,2]